[Event "Early-Titled-Tuesday-Blitz-May-07-2024"]
[Site "Chess.com"]
[Date "2024.05.07"]
[Round "11"]
[White "azikom"]
[Black "Mrlammy"]
[Result "1-0"]
[WhiteElo "2752"]
[BlackElo "2597"]
[TimeControl "180+1"]
[EndTime "10:14:54 PDT"]
[Termination "azikom won on time"]

1. d4 {[%clk 0:02:59.6]} 1... d5 {[%clk 0:02:59.6]} 2. Nf3 {[%clk 0:02:58.9]}
2... Nf6 {[%clk 0:02:59.9]} 3. Bf4 {[%clk 0:02:59.1]} 3... c5 {[%clk 0:02:59.9]}
4. e3 {[%clk 0:02:58.8]} 4... Nc6 {[%clk 0:02:58.3]} 5. Nc3 {[%clk 0:02:56.1]}
5... Bg4 {[%clk 0:02:53.2]} 6. Be2 {[%clk 0:02:54.6]} 6... e6 {[%clk 0:02:52.7]}
7. O-O {[%clk 0:02:52.3]} 7... Be7 {[%clk 0:02:51.1]} 8. h3 {[%clk 0:02:51.8]}
8... Bh5 {[%clk 0:02:46.9]} 9. Ne5 {[%clk 0:02:51.2]} 9... Bxe2 {[%clk
0:02:42.1]} 10. Qxe2 {[%clk 0:02:50.4]} 10... cxd4 {[%clk 0:02:37.8]} 11. Nxc6
{[%clk 0:02:48.9]} 11... bxc6 {[%clk 0:02:38.7]} 12. exd4 {[%clk 0:02:49.4]}
12... O-O {[%clk 0:02:35.2]} 13. Na4 {[%clk 0:02:48.9]} 13... Nd7 {[%clk
0:02:26]} 14. c4 {[%clk 0:02:47.1]} 14... dxc4 {[%clk 0:01:56.8]} 15. Qxc4
{[%clk 0:02:34]} 15... Nb6 {[%clk 0:01:56.3]} 16. Nxb6 {[%clk 0:02:18.4]} 16...
Qxb6 {[%clk 0:01:49.5]} 17. b3 {[%clk 0:02:15.6]} 17... Bf6 {[%clk 0:01:45.1]}
18. Be3 {[%clk 0:02:13.1]} 18... Qb5 {[%clk 0:01:35.3]} 19. Rac1 {[%clk
0:02:11.7]} 19... Rfd8 {[%clk 0:01:30.8]} 20. Rfd1 {[%clk 0:02:07.6]} 20... Rac8
{[%clk 0:01:27.2]} 21. Rd2 {[%clk 0:01:55.3]} 21... Qd5 {[%clk 0:01:16.7]} 22.
Qe2 {[%clk 0:01:48.9]} 22... Be7 {[%clk 0:01:07.7]} 23. Rc4 {[%clk 0:01:46.2]}
23... Rd7 {[%clk 0:01:01]} 24. Rdc2 {[%clk 0:01:40.9]} 24... h6 {[%clk
0:00:57.7]} 25. Ra4 {[%clk 0:01:34.8]} 25... c5 {[%clk 0:00:38.7]} 26. Ra5
{[%clk 0:01:13.4]} 26... Rdc7 {[%clk 0:00:34.7]} 27. dxc5 {[%clk 0:01:06.6]}
27... Bd8 {[%clk 0:00:20.3]} 28. Ra4 {[%clk 0:00:52.5]} 28... Be7 {[%clk
0:00:19.5]} 29. b4 {[%clk 0:00:37.4]} 29... Qe5 {[%clk 0:00:19.5]} 30. Ra6
{[%clk 0:00:26.2]} 30... Qd5 {[%clk 0:00:11.7]} 31. a3 {[%clk 0:00:18.2]} 31...
Bf6 {[%clk 0:00:11.8]} 32. Rd2 {[%clk 0:00:13.4]} 32... Qb3 {[%clk 0:00:11.4]}
33. Qd3 {[%clk 0:00:12.3]} 33... Qxd3 {[%clk 0:00:07.2]} 34. Rxd3 {[%clk
0:00:12]} 34... Be5 {[%clk 0:00:06]} 35. g3 {[%clk 0:00:11.4]} 35... f5 {[%clk
0:00:06]} 36. Kg2 {[%clk 0:00:11.6]} 36... Bf6 {[%clk 0:00:06.3]} 37. Rxe6
{[%clk 0:00:10.5]} 37... Kf7 {[%clk 0:00:05.3]} 38. Ra6 {[%clk 0:00:10.3]} 38...
Rb7 {[%clk 0:00:05.2]} 39. Bf4 {[%clk 0:00:10]} 39... g5 {[%clk 0:00:04.3]} 40.
Bd6 {[%clk 0:00:09]} 40... Bd8 {[%clk 0:00:03]} 41. Rf3 {[%clk 0:00:08.5]} 41...
Ke6 {[%clk 0:00:01]} 42. Bc7+ {[%clk 0:00:07.2]} 1-0

[Event "Early-Titled-Tuesday-Blitz-May-07-2024"]
[Site "Chess.com"]
[Date "2024.05.07"]
[Round "11"]
[White "IMchanged"]
[Black "andriipalchuk"]
[Result "1-0"]
[WhiteElo "2769"]
[BlackElo "2631"]
[TimeControl "180+1"]
[EndTime "10:14:55 PDT"]
[Termination "IMchanged won on time"]

1. d4 {[%clk 0:03:00.9]} 1... Nf6 {[%clk 0:02:50.5]} 2. Nc3 {[%clk 0:02:59.1]}
2... d5 {[%clk 0:02:50.9]} 3. Bf4 {[%clk 0:02:59.1]} 3... a6 {[%clk 0:02:51.2]}
4. e3 {[%clk 0:02:59.9]} 4... c5 {[%clk 0:02:51.5]} 5. dxc5 {[%clk 0:02:59.9]}
5... Nc6 {[%clk 0:02:51.9]} 6. a3 {[%clk 0:03:00]} 6... g6 {[%clk 0:02:38.9]} 7.
Nf3 {[%clk 0:02:55.8]} 7... Bg7 {[%clk 0:02:38.9]} 8. Be2 {[%clk 0:02:53.6]}
8... O-O {[%clk 0:02:38.7]} 9. O-O {[%clk 0:02:53.4]} 9... Be6 {[%clk
0:02:07.2]} 10. Nd4 {[%clk 0:02:49.8]} 10... Bd7 {[%clk 0:02:05.8]} 11. h3
{[%clk 0:02:46.5]} 11... Rc8 {[%clk 0:01:23.2]} 12. Nxc6 {[%clk 0:02:37.5]}
12... Bxc6 {[%clk 0:01:10.9]} 13. Be5 {[%clk 0:02:37]} 13... Re8 {[%clk
0:01:08.4]} 14. Qd4 {[%clk 0:02:31.9]} 14... Bf8 {[%clk 0:00:27.1]} 15. Rfd1
{[%clk 0:02:29.2]} 15... Nd7 {[%clk 0:00:26.6]} 16. Nxd5 {[%clk 0:02:24.5]}
16... Nxe5 {[%clk 0:00:26.1]} 17. Qxe5 {[%clk 0:02:20.3]} 17... Bg7 {[%clk
0:00:23.3]} 18. Qf4 {[%clk 0:01:58.8]} 18... Bxd5 {[%clk 0:00:22.1]} 19. c4
{[%clk 0:01:56.8]} 19... Bxb2 {[%clk 0:00:14.3]} 20. Rxd5 {[%clk 0:01:55.5]}
20... Bxa1 {[%clk 0:00:13.1]} 21. Rxd8 {[%clk 0:01:54.8]} 21... Rexd8 {[%clk
0:00:13.8]} 22. Qe4 {[%clk 0:01:45.4]} 22... Rc7 {[%clk 0:00:11.5]} 23. g3
{[%clk 0:01:41.7]} 23... Bf6 {[%clk 0:00:10.9]} 24. Kg2 {[%clk 0:01:41.9]} 24...
Rb8 {[%clk 0:00:10.7]} 25. Qf4 {[%clk 0:01:39.8]} 25... Rcc8 {[%clk 0:00:08.2]}
26. Bg4 {[%clk 0:01:38.6]} 26... Rd8 {[%clk 0:00:08.7]} 27. Qc7 {[%clk
0:01:37.3]} 27... h5 {[%clk 0:00:08.4]} 28. Bd7 {[%clk 0:01:35.4]} 28... Kf8
{[%clk 0:00:08.2]} 29. a4 {[%clk 0:01:33.7]} 29... e6 {[%clk 0:00:04.4]} 30. a5
{[%clk 0:01:33.5]} 30... Be7 {[%clk 0:00:04.7]} 31. h4 {[%clk 0:01:29.5]} 31...
Bf6 {[%clk 0:00:03.4]} 32. e4 {[%clk 0:01:24.1]} 32... Be7 {[%clk 0:00:04]} 33.
e5 {[%clk 0:01:24.3]} 33... Kg8 {[%clk 0:00:04.7]} 34. Bxe6 {[%clk 0:01:24.4]}
34... Re8 {[%clk 0:00:04.9]} 35. Bd7 {[%clk 0:01:21.5]} 35... Red8 {[%clk
0:00:04.8]} 36. e6 {[%clk 0:01:21.7]} 36... Kf8 {[%clk 0:00:03.6]} 37. f4 {[%clk
0:01:17.7]} 37... f5 {[%clk 0:00:02.6]} 38. Kf3 {[%clk 0:01:15.6]} 38... Kg7
{[%clk 0:00:02.8]} 39. Ke3 {[%clk 0:01:15.6]} 39... Kf6 {[%clk 0:00:03.3]} 40.
Kd4 {[%clk 0:01:15.9]} 40... Kg7 {[%clk 0:00:03.6]} 41. Kd5 {[%clk 0:01:15.8]}
41... Bf6 {[%clk 0:00:04.1]} 42. Kd6 {[%clk 0:01:13.5]} 42... Kf8 {[%clk
0:00:04.3]} 43. Qb6 {[%clk 0:01:09]} 43... Be7+ {[%clk 0:00:03.9]} 44. Kc7
{[%clk 0:01:09.4]} 44... Bf6 {[%clk 0:00:03]} 45. Qd6+ {[%clk 0:01:04.3]} 45...
Be7 {[%clk 0:00:03.3]} 46. Qe5 {[%clk 0:01:04.1]} 46... Kg8 {[%clk 0:00:03.9]}
47. Kb6 {[%clk 0:00:55.3]} 47... Kh7 {[%clk 0:00:04.1]} 48. Qc7 {[%clk
0:00:51.1]} 48... Kg8 {[%clk 0:00:04.7]} 49. Ka7 {[%clk 0:00:46.7]} 49... Ra8+
{[%clk 0:00:04.3]} 50. Kxb7 {[%clk 0:00:47.1]} 50... Kf8 {[%clk 0:00:01.9]} 51.
c6 {[%clk 0:00:45.3]} 51... Bc5 {[%clk 0:00:01.4]} 52. Qxd8+ {[%clk 0:00:41.6]}
52... Rxd8 {[%clk 0:00:02.3]} 53. c7 {[%clk 0:00:42.3]} 53... Ke7 {[%clk
0:00:03]} 54. Kxa6 {[%clk 0:00:38.6]} 54... Ra8+ {[%clk 0:00:02.6]} 55. Kb7
{[%clk 0:00:39.2]} 55... Ra7+ {[%clk 0:00:03]} 56. Kc6 {[%clk 0:00:39.8]} 56...
Rxc7+ {[%clk 0:00:01.4]} 57. Kxc7 {[%clk 0:00:40.7]} 57... Bf2 {[%clk
0:00:01.8]} 58. a6 {[%clk 0:00:39.9]} 58... Bxg3 {[%clk 0:00:01.9]} 59. a7
{[%clk 0:00:40.6]} 1-0

[Event "Early-Titled-Tuesday-Blitz-May-07-2024"]
[Site "Chess.com"]
[Date "2024.05.07"]
[Round "11"]
[White "kpio91"]
[Black "RodTwinkz"]
[Result "1-0"]
[WhiteElo "2878"]
[BlackElo "2677"]
[TimeControl "180+1"]
[EndTime "10:14:59 PDT"]
[Termination "kpio91 won by checkmate"]

1. d4 {[%clk 0:03:00.9]} 1... Nf6 {[%clk 0:02:59.5]} 2. Nf3 {[%clk 0:03:01.4]}
2... g6 {[%clk 0:02:59.3]} 3. Bf4 {[%clk 0:03:01.6]} 3... Bg7 {[%clk 0:02:58.8]}
4. e3 {[%clk 0:03:02]} 4... O-O {[%clk 0:02:58.8]} 5. h3 {[%clk 0:03:02]} 5...
d6 {[%clk 0:02:57]} 6. Bh2 {[%clk 0:03:01.2]} 6... Nbd7 {[%clk 0:02:56.8]} 7.
Be2 {[%clk 0:03:01.2]} 7... Qe8 {[%clk 0:02:55.5]} 8. O-O {[%clk 0:03:01.3]}
8... e5 {[%clk 0:02:55.7]} 9. c3 {[%clk 0:03:01.5]} 9... Qe7 {[%clk 0:02:55.3]}
10. Na3 {[%clk 0:03:01.1]} 10... a6 {[%clk 0:02:53.7]} 11. Rc1 {[%clk
0:03:00.1]} 11... Ne4 {[%clk 0:02:46.2]} 12. Nd2 {[%clk 0:02:53]} 12... Nxd2
{[%clk 0:02:45.2]} 13. Qxd2 {[%clk 0:02:53.5]} 13... f5 {[%clk 0:02:45.7]} 14.
Nc4 {[%clk 0:02:52.8]} 14... e4 {[%clk 0:02:32.7]} 15. Na5 {[%clk 0:02:46.9]}
15... g5 {[%clk 0:02:23]} 16. f3 {[%clk 0:02:43]} 16... Nf6 {[%clk 0:02:17.8]}
17. c4 {[%clk 0:02:40.3]} 17... Re8 {[%clk 0:02:09.7]} 18. f4 {[%clk 0:02:22.6]}
18... g4 {[%clk 0:02:01.7]} 19. c5 {[%clk 0:02:18.5]} 19... d5 {[%clk
0:01:27.3]} 20. hxg4 {[%clk 0:02:02.3]} 20... Nxg4 {[%clk 0:01:20.8]} 21. Bxg4
{[%clk 0:02:00.9]} 21... fxg4 {[%clk 0:01:21.7]} 22. f5 {[%clk 0:02:01.5]} 22...
Rf8 {[%clk 0:01:10.5]} 23. Bg3 {[%clk 0:01:49.7]} 23... h5 {[%clk 0:01:01.6]}
24. Qe1 {[%clk 0:01:48.5]} 24... Bf6 {[%clk 0:01:00.2]} 25. b4 {[%clk
0:01:41.5]} 25... Rf7 {[%clk 0:00:54.7]} 26. a4 {[%clk 0:01:40.8]} 26... c6
{[%clk 0:00:49.5]} 27. Rb1 {[%clk 0:01:39.7]} 27... Qd8 {[%clk 0:00:47.2]} 28.
Ra1 {[%clk 0:01:22.4]} 28... Bg5 {[%clk 0:00:44]} 29. Bf4 {[%clk 0:01:05.3]}
29... Rxf5 {[%clk 0:00:33.2]} 30. b5 {[%clk 0:01:02.4]} 30... Bxf4 {[%clk
0:00:27.6]} 31. exf4 {[%clk 0:01:01.9]} 31... axb5 {[%clk 0:00:27]} 32. axb5
{[%clk 0:01:01.4]} 32... Qf6 {[%clk 0:00:26.3]} 33. Qe3 {[%clk 0:00:58.1]} 33...
Bd7 {[%clk 0:00:17.4]} 34. Nxb7 {[%clk 0:00:40.8]} 34... Rxa1 {[%clk 0:00:14.2]}
35. Rxa1 {[%clk 0:00:41.7]} 35... cxb5 {[%clk 0:00:11.6]} 36. Rf1 {[%clk
0:00:31.9]} 36... b4 {[%clk 0:00:08.9]} 37. Nd6 {[%clk 0:00:31.9]} 37... h4
{[%clk 0:00:07.1]} 38. Nxf5 {[%clk 0:00:31.6]} 38... Qxf5 {[%clk 0:00:04.9]} 39.
Rc1 {[%clk 0:00:31.5]} 39... Bc6 {[%clk 0:00:04.1]} 40. Rf1 {[%clk 0:00:27.5]}
40... g3 {[%clk 0:00:04]} 41. Qe2 {[%clk 0:00:25]} 41... Qd7 {[%clk 0:00:01.9]}
42. f5 {[%clk 0:00:24.4]} 42... Bb5 {[%clk 0:00:00.5]} 43. Qg4+ {[%clk
0:00:24.4]} 43... Kf8 {[%clk 0:00:00.8]} 44. Ra1 {[%clk 0:00:23.3]} 44... Qb7
{[%clk 0:00:00.7]} 45. f6 {[%clk 0:00:21.6]} 45... Bc6 {[%clk 0:00:00.3]} 46.
Ra8+ {[%clk 0:00:16.3]} 46... Kf7 {[%clk 0:00:00.3]} 47. Qg7+ {[%clk 0:00:16.3]}
47... Ke6 {[%clk 0:00:01.2]} 48. Re8+ {[%clk 0:00:16.3]} 48... Kf5 {[%clk
0:00:01.5]} 49. Re5+ {[%clk 0:00:15.2]} 49... Kf4 {[%clk 0:00:01.5]} 50. Qg5#
{[%clk 0:00:16.1]} 1-0

[Event "Early-Titled-Tuesday-Blitz-May-07-2024"]
[Site "Chess.com"]
[Date "2024.05.07"]
[Round "11"]
[White "NowInChess"]
[Black "ImportedItalianMaple"]
[Result "0-1"]
[WhiteElo "2265"]
[BlackElo "2500"]
[TimeControl "180+1"]
[EndTime "10:15:03 PDT"]
[Termination "ImportedItalianMaple won by checkmate"]

1. e4 {[%clk 0:03:00.9]} 1... g6 {[%clk 0:03:00.2]} 2. d3 {[%clk 0:03:00.8]}
2... Bg7 {[%clk 0:03:00.2]} 3. g3 {[%clk 0:03:01.4]} 3... d5 {[%clk 0:02:59.9]}
4. Nd2 {[%clk 0:03:00.5]} 4... dxe4 {[%clk 0:02:56.4]} 5. dxe4 {[%clk
0:03:00.2]} 5... Nc6 {[%clk 0:02:48.6]} 6. Ngf3 {[%clk 0:02:57.1]} 6... Nh6
{[%clk 0:02:42.3]} 7. Bg2 {[%clk 0:02:55.1]} 7... O-O {[%clk 0:02:42.7]} 8. O-O
{[%clk 0:02:55]} 8... e5 {[%clk 0:02:34.7]} 9. Re1 {[%clk 0:02:51.7]} 9... Be6
{[%clk 0:02:33.3]} 10. c3 {[%clk 0:02:49.1]} 10... f6 {[%clk 0:02:28.8]} 11. Bf1
{[%clk 0:02:40.3]} 11... Qd7 {[%clk 0:02:14.9]} 12. Bc4 {[%clk 0:02:39.8]} 12...
Rad8 {[%clk 0:02:14.8]} 13. Bxe6+ {[%clk 0:02:34.4]} 13... Qxe6 {[%clk 0:02:15]}
14. Qb3 {[%clk 0:02:34.9]} 14... Qxb3 {[%clk 0:02:12]} 15. Nxb3 {[%clk
0:02:35.5]} 15... b6 {[%clk 0:02:11.2]} 16. h3 {[%clk 0:02:22.5]} 16... Rd3
{[%clk 0:02:01.3]} 17. Be3 {[%clk 0:02:05.7]} 17... Rfd8 {[%clk 0:02:00.6]} 18.
Kf1 {[%clk 0:02:03.5]} 18... Nf7 {[%clk 0:01:58.4]} 19. Ke2 {[%clk 0:02:03]}
19... Bf8 {[%clk 0:01:38.7]} 20. Rad1 {[%clk 0:01:56.1]} 20... R3d6 {[%clk
0:01:39]} 21. Nbd2 {[%clk 0:01:47.1]} 21... R6d7 {[%clk 0:01:07.1]} 22. Nc4
{[%clk 0:01:43.7]} 22... b5 {[%clk 0:01:07]} 23. Ncd2 {[%clk 0:01:35.2]} 23...
a5 {[%clk 0:00:55.2]} 24. Nb3 {[%clk 0:01:32.9]} 24... a4 {[%clk 0:00:22.3]} 25.
Nc5 {[%clk 0:01:32]} 25... Bxc5 {[%clk 0:00:22.9]} 26. Bxc5 {[%clk 0:01:32.6]}
26... Na5 {[%clk 0:00:23.5]} 27. Rxd7 {[%clk 0:01:22.6]} 27... Rxd7 {[%clk
0:00:23.6]} 28. Nd2 {[%clk 0:01:22.7]} 28... Nd6 {[%clk 0:00:22.3]} 29. Bxd6
{[%clk 0:01:15.6]} 29... Rxd6 {[%clk 0:00:22.6]} 30. b4 {[%clk 0:01:09.7]} 30...
Nb7 {[%clk 0:00:20.6]} 31. Nf3 {[%clk 0:01:03.2]} 31... Kf7 {[%clk 0:00:20.5]}
32. Rd1 {[%clk 0:01:02.8]} 32... Ke6 {[%clk 0:00:20.6]} 33. Rxd6+ {[%clk
0:01:00.9]} 33... Nxd6 {[%clk 0:00:21.5]} 34. Nd2 {[%clk 0:01:00.3]} 34... c5
{[%clk 0:00:21.3]} 35. Kd3 {[%clk 0:00:46]} 35... cxb4 {[%clk 0:00:20.3]} 36.
cxb4 {[%clk 0:00:45.8]} 36... f5 {[%clk 0:00:20.8]} 37. f3 {[%clk 0:00:44.2]}
37... Nc8 {[%clk 0:00:19.4]} 38. Nb1 {[%clk 0:00:41.9]} 38... Nd6 {[%clk
0:00:15]} 39. Nc3 {[%clk 0:00:40.1]} 39... h6 {[%clk 0:00:14.4]} 40. a3 {[%clk
0:00:39.4]} 40... g5 {[%clk 0:00:14.4]} 41. g4 {[%clk 0:00:38.5]} 41... fxg4
{[%clk 0:00:13.6]} 42. hxg4 {[%clk 0:00:35.9]} 42... Kd7 {[%clk 0:00:14.3]} 43.
Nd5 {[%clk 0:00:33.8]} 43... Kc6 {[%clk 0:00:14.8]} 44. Ne7+ {[%clk 0:00:31.7]}
44... Kb6 {[%clk 0:00:15.3]} 45. Nf5 {[%clk 0:00:31.2]} 45... Nc4 {[%clk
0:00:15.8]} 46. Nxh6 {[%clk 0:00:30.3]} 46... Nxa3 {[%clk 0:00:16.4]} 47. Nf7
{[%clk 0:00:29.8]} 47... Nc4 {[%clk 0:00:16.6]} 48. Nxg5 {[%clk 0:00:28.5]}
48... a3 {[%clk 0:00:13.6]} 49. f4 {[%clk 0:00:09.8]} 49... a2 {[%clk
0:00:12.6]} 50. f5 {[%clk 0:00:04.6]} 50... a1=Q {[%clk 0:00:13]} 51. Ne6 {[%clk
0:00:03.9]} 51... Qd1+ {[%clk 0:00:11.8]} 52. Kc3 {[%clk 0:00:03.1]} 52... Qd2+
{[%clk 0:00:12]} 53. Kb3 {[%clk 0:00:02.9]} 53... Qb2# {[%clk 0:00:12.6]} 0-1

[Event "Early-Titled-Tuesday-Blitz-May-07-2024"]
[Site "Chess.com"]
[Date "2024.05.07"]
[Round "11"]
[White "VacheH009"]
[Black "Jojo_898"]
[Result "0-1"]
[WhiteElo "2555"]
[BlackElo "2462"]
[TimeControl "180+1"]
[EndTime "10:15:05 PDT"]
[Termination "Jojo_898 won on time"]

1. d4 {[%clk 0:03:00.9]} 1... Nf6 {[%clk 0:02:59.2]} 2. c4 {[%clk 0:03:00.9]}
2... b6 {[%clk 0:02:58]} 3. Nc3 {[%clk 0:03:00.5]} 3... Bb7 {[%clk 0:02:58.2]}
4. f3 {[%clk 0:03:00]} 4... e6 {[%clk 0:02:56.7]} 5. e4 {[%clk 0:02:59.9]} 5...
d6 {[%clk 0:02:55]} 6. Bd3 {[%clk 0:02:56.9]} 6... c5 {[%clk 0:02:52]} 7. d5
{[%clk 0:02:56.5]} 7... exd5 {[%clk 0:02:50.7]} 8. cxd5 {[%clk 0:02:54.7]} 8...
Nbd7 {[%clk 0:02:50]} 9. Nge2 {[%clk 0:02:50.1]} 9... Be7 {[%clk 0:02:50]} 10.
O-O {[%clk 0:02:38.2]} 10... O-O {[%clk 0:02:50.1]} 11. Bf4 {[%clk 0:02:34.2]}
11... Re8 {[%clk 0:02:48.3]} 12. a4 {[%clk 0:02:30.3]} 12... a6 {[%clk
0:02:47.2]} 13. Rb1 {[%clk 0:02:22.8]} 13... Bf8 {[%clk 0:02:30.7]} 14. b4
{[%clk 0:02:20.3]} 14... Rb8 {[%clk 0:02:16.7]} 15. b5 {[%clk 0:02:17.7]} 15...
a5 {[%clk 0:02:14.2]} 16. Rc1 {[%clk 0:02:15.1]} 16... Ne5 {[%clk 0:02:08.7]}
17. Bxe5 {[%clk 0:02:14.7]} 17... Rxe5 {[%clk 0:02:07.5]} 18. Nb1 {[%clk
0:02:15.1]} 18... Re8 {[%clk 0:02:04.6]} 19. Nd2 {[%clk 0:02:14.1]} 19... Nd7
{[%clk 0:02:02.7]} 20. Nc4 {[%clk 0:02:13.8]} 20... Ne5 {[%clk 0:02:02.4]} 21.
Nxe5 {[%clk 0:02:04.8]} 21... Rxe5 {[%clk 0:02:02.5]} 22. Nc3 {[%clk 0:02:04.2]}
22... Qh4 {[%clk 0:01:56.5]} 23. Qe1 {[%clk 0:02:01.6]} 23... Qh6 {[%clk
0:01:53.4]} 24. Qf2 {[%clk 0:01:41.5]} 24... Rh5 {[%clk 0:01:45]} 25. h3 {[%clk
0:01:33.4]} 25... Bc8 {[%clk 0:01:34.5]} 26. Rfe1 {[%clk 0:01:26.1]} 26... Be7
{[%clk 0:01:30.2]} 27. Bf1 {[%clk 0:01:25.6]} 27... Bg5 {[%clk 0:01:27]} 28.
Rcd1 {[%clk 0:01:20.6]} 28... Bh4 {[%clk 0:01:19.5]} 29. g3 {[%clk 0:01:19.5]}
29... Bf6 {[%clk 0:01:20.1]} 30. Ne2 {[%clk 0:00:54.5]} 30... Bxh3 {[%clk
0:01:17.3]} 31. Bxh3 {[%clk 0:00:55.4]} 31... Rxh3 {[%clk 0:01:16.8]} 32. Qg2
{[%clk 0:00:55.2]} 32... Rh5 {[%clk 0:01:01.4]} 33. Nf4 {[%clk 0:00:53.6]} 33...
Rg5 {[%clk 0:00:56.9]} 34. Kf2 {[%clk 0:00:42.3]} 34... Bd4+ {[%clk 0:00:51.5]}
35. Ke2 {[%clk 0:00:42.8]} 35... Be5 {[%clk 0:00:51.2]} 36. Rh1 {[%clk
0:00:36.6]} 36... Qf6 {[%clk 0:00:48.8]} 37. Nh5 {[%clk 0:00:33.3]} 37... Qg6
{[%clk 0:00:49]} 38. g4 {[%clk 0:00:29.3]} 38... Re8 {[%clk 0:00:40]} 39. Qh3
{[%clk 0:00:27.6]} 39... Bd4 {[%clk 0:00:33.9]} 40. Kd3 {[%clk 0:00:20.5]} 40...
h6 {[%clk 0:00:24.5]} 41. Kc4 {[%clk 0:00:17.3]} 41... Rge5 {[%clk 0:00:20.9]}
42. Nf4 {[%clk 0:00:15.8]} 42... Qf6 {[%clk 0:00:20.4]} 43. Nd3 {[%clk
0:00:14.7]} 43... R5e7 {[%clk 0:00:20.2]} 44. Rhf1 {[%clk 0:00:12.4]} 44... Be3
{[%clk 0:00:20.1]} 45. Kb3 {[%clk 0:00:07.5]} 45... c4+ {[%clk 0:00:19.9]} 46.
Kxc4 {[%clk 0:00:05.3]} 46... Rc7+ {[%clk 0:00:20.6]} 47. Kb3 {[%clk 0:00:05]}
47... Qc3+ {[%clk 0:00:20.1]} 48. Ka2 {[%clk 0:00:05.6]} 48... Qc4+ {[%clk
0:00:20]} 49. Kb1 {[%clk 0:00:03.9]} 49... Qb3+ {[%clk 0:00:19.3]} 50. Nb2
{[%clk 0:00:04.5]} 50... Rc2 {[%clk 0:00:16.8]} 0-1

[Event "Early-Titled-Tuesday-Blitz-May-07-2024"]
[Site "Chess.com"]
[Date "2024.05.07"]
[Round "11"]
[White "LLariMarc"]
[Black "Groetzi"]
[Result "1-0"]
[WhiteElo "2524"]
[BlackElo "2413"]
[TimeControl "180+1"]
[EndTime "10:15:06 PDT"]
[Termination "LLariMarc won by checkmate"]

1. d4 {[%clk 0:03:00.9]} 1... d5 {[%clk 0:02:59.6]} 2. Nf3 {[%clk 0:03:00.5]}
2... Nf6 {[%clk 0:02:58.4]} 3. Bf4 {[%clk 0:03:00.7]} 3... Bf5 {[%clk
0:02:53.2]} 4. Nbd2 {[%clk 0:02:59.2]} 4... c6 {[%clk 0:02:52.4]} 5. e3 {[%clk
0:02:58.3]} 5... e6 {[%clk 0:02:52.7]} 6. Nh4 {[%clk 0:02:53.1]} 6... Bg4 {[%clk
0:02:48.9]} 7. Be2 {[%clk 0:02:53.6]} 7... Bxe2 {[%clk 0:02:43.6]} 8. Qxe2
{[%clk 0:02:54.5]} 8... Be7 {[%clk 0:02:27.9]} 9. Nhf3 {[%clk 0:02:54.3]} 9...
Nbd7 {[%clk 0:02:27.6]} 10. O-O {[%clk 0:02:54.2]} 10... O-O {[%clk 0:02:27.1]}
11. c4 {[%clk 0:02:52.4]} 11... c5 {[%clk 0:02:20.2]} 12. Rac1 {[%clk
0:02:50.5]} 12... Rc8 {[%clk 0:02:16.3]} 13. Bg3 {[%clk 0:02:42.2]} 13... cxd4
{[%clk 0:02:07.4]} 14. Nxd4 {[%clk 0:02:41.5]} 14... Nc5 {[%clk 0:02:00.7]} 15.
Rfd1 {[%clk 0:02:38.3]} 15... Qb6 {[%clk 0:01:57.8]} 16. N2b3 {[%clk 0:02:31.9]}
16... Rfd8 {[%clk 0:01:45.8]} 17. Nxc5 {[%clk 0:02:21.4]} 17... Bxc5 {[%clk
0:01:45.5]} 18. Nb3 {[%clk 0:02:20.8]} 18... Be7 {[%clk 0:01:40.5]} 19. cxd5
{[%clk 0:02:13.9]} 19... Nxd5 {[%clk 0:01:35.2]} 20. Be5 {[%clk 0:02:11.5]}
20... Bf6 {[%clk 0:01:20.3]} 21. Bxf6 {[%clk 0:02:11.7]} 21... Nxf6 {[%clk
0:01:21.2]} 22. Rxc8 {[%clk 0:02:09.6]} 22... Rxc8 {[%clk 0:01:22.1]} 23. Rc1
{[%clk 0:02:09.6]} 23... Rxc1+ {[%clk 0:01:10.5]} 24. Nxc1 {[%clk 0:02:10.5]}
24... Qc6 {[%clk 0:01:06.8]} 25. Nb3 {[%clk 0:02:08.8]} 25... Nd5 {[%clk
0:01:04]} 26. Qd2 {[%clk 0:02:05.3]} 26... Qc4 {[%clk 0:00:56.2]} 27. f3 {[%clk
0:01:56.6]} 27... b6 {[%clk 0:00:49.2]} 28. e4 {[%clk 0:01:51.4]} 28... a5
{[%clk 0:00:35.5]} 29. exd5 {[%clk 0:01:50.9]} 29... exd5 {[%clk 0:00:36.4]} 30.
Qd4 {[%clk 0:01:36.6]} 30... Qc2 {[%clk 0:00:36.2]} 31. Nd2 {[%clk 0:01:32.8]}
31... h6 {[%clk 0:00:23.8]} 32. Kf2 {[%clk 0:01:30.8]} 32... b5 {[%clk
0:00:20.9]} 33. h4 {[%clk 0:01:23.9]} 33... Qd1 {[%clk 0:00:18.6]} 34. Qxd5
{[%clk 0:01:21]} 34... b4 {[%clk 0:00:18.5]} 35. h5 {[%clk 0:01:17.5]} 35... Qc1
{[%clk 0:00:17.7]} 36. Qd8+ {[%clk 0:01:16.2]} 36... Kh7 {[%clk 0:00:17.6]} 37.
Qd3+ {[%clk 0:01:16.9]} 37... Kg8 {[%clk 0:00:18]} 38. Nc4 {[%clk 0:01:15.8]}
38... a4 {[%clk 0:00:16.8]} 39. b3 {[%clk 0:01:12.5]} 39... axb3 {[%clk
0:00:14.9]} 40. axb3 {[%clk 0:01:13.4]} 40... Qa1 {[%clk 0:00:12.3]} 41. g4
{[%clk 0:01:12.3]} 41... Qa2+ {[%clk 0:00:11.9]} 42. Ke3 {[%clk 0:01:09.6]}
42... Qa1 {[%clk 0:00:11.9]} 43. Ke4 {[%clk 0:01:06.9]} 43... Qe1+ {[%clk
0:00:11.6]} 44. Qe3 {[%clk 0:01:06.1]} 44... Qb1+ {[%clk 0:00:10.8]} 45. Kd5
{[%clk 0:01:05.8]} 45... Qd1+ {[%clk 0:00:09.3]} 46. Kc5 {[%clk 0:01:06.1]}
46... f5 {[%clk 0:00:03.8]} 47. Qe8+ {[%clk 0:01:03.4]} 47... Kh7 {[%clk
0:00:03.5]} 48. Qg6+ {[%clk 0:01:03.7]} 48... Kg8 {[%clk 0:00:04.4]} 49. Qe6+
{[%clk 0:01:03.3]} 49... Kh8 {[%clk 0:00:04.1]} 50. Qxf5 {[%clk 0:01:03.2]}
50... Qd8 {[%clk 0:00:03.6]} 51. Kxb4 {[%clk 0:01:02.5]} 51... Qb8+ {[%clk
0:00:03.6]} 52. Qb5 {[%clk 0:01:01.6]} 52... Qf8+ {[%clk 0:00:03.4]} 53. Qc5
{[%clk 0:01:01.7]} 53... Qxf3 {[%clk 0:00:04.3]} 54. Qc8+ {[%clk 0:01:01.7]}
54... Kh7 {[%clk 0:00:04.1]} 55. Qf5+ {[%clk 0:01:02]} 55... Qxf5 {[%clk
0:00:04.7]} 56. gxf5 {[%clk 0:01:02.9]} 56... Kg8 {[%clk 0:00:02]} 57. Nd6
{[%clk 0:01:01.6]} 57... Kf8 {[%clk 0:00:01.8]} 58. Kc5 {[%clk 0:01:01.5]} 58...
Ke7 {[%clk 0:00:02.7]} 59. Ne4 {[%clk 0:01:01.9]} 59... Kd7 {[%clk 0:00:00.8]}
60. b4 {[%clk 0:01:00.2]} 60... Kc7 {[%clk 0:00:00.6]} 61. b5 {[%clk 0:01:00]}
61... Kb7 {[%clk 0:00:01.5]} 62. b6 {[%clk 0:00:59.5]} 62... Kb8 {[%clk
0:00:02]} 63. Kc6 {[%clk 0:00:59.5]} 63... Kc8 {[%clk 0:00:02.9]} 64. b7+ {[%clk
0:00:58.6]} 64... Kb8 {[%clk 0:00:03.3]} 65. Nc5 {[%clk 0:00:59.1]} 65... g5
{[%clk 0:00:04.2]} 66. hxg6 {[%clk 0:00:57.9]} 66... h5 {[%clk 0:00:04.3]} 67.
g7 {[%clk 0:00:58.5]} 67... h4 {[%clk 0:00:05.2]} 68. f6 {[%clk 0:00:58.3]}
68... Ka7 {[%clk 0:00:06.1]} 69. f7 {[%clk 0:00:57.7]} 69... h3 {[%clk
0:00:04.7]} 70. f8=Q {[%clk 0:00:58.2]} 70... h2 {[%clk 0:00:05.6]} 71. b8=B+
{[%clk 0:00:55.5]} 71... Ka8 {[%clk 0:00:05.3]} 72. Bxh2+ {[%clk 0:00:55.9]}
72... Ka7 {[%clk 0:00:06.2]} 73. Qe7+ {[%clk 0:00:53.9]} 73... Ka8 {[%clk
0:00:07.1]} 74. g8=R# {[%clk 0:00:53.4]} 1-0